bitfinex/quotes_BTCUSD_20220103
["timestamp","ask_amount","ask_price","bid_price","bid_amount"]
[1641238158276,0.22,46639.0,46638.0,0.10909962]
[1641238158478,0.22,46639.0,46638.0,0.38778603]
[1641238158675,0.22,46639.0,46638.0,0.73824103]
[1641238162734,0.22,46639.0,46638.0,0.45955462]
[1641238163737,0.22,46639.0,46638.0,0.10909962]
[1641238164137,0.21766547,46639.0,46638.0,0.10909962]
[1641238167683,0.21766547,46639.0,46638.0,0.10056662]
[1641238168133,0.56812047,46639.0,46638.0,0.10056662]
[1641238169539,0.61812047,46639.0,46638.0,0.10056662]
[1641238169734,0.61812047,46639.0,46638.0,0.10909962]
[1641238171138,0.56812047,46639.0,46638.0,0.10909962]
[1641238174487,0.59037351,46639.0,46638.0,0.10909962]
[1641238179030,0.63337351,46639.0,46638.0,0.10909962]
[1641238179888,0.63337351,46639.0,46638.0,0.00909962]
[1641238180086,0.78337351,46639.0,46638.0,0.10909962]
[1641238181388,0.68337351,46639.0,46638.0,0.10909962]
[1641238181587,0.78337351,46639.0,46638.0,0.10909962]
[1641238181786,0.78337351,46639.0,46638.0,0.10056662]
[1641238182688,0.68337351,46639.0,46638.0,0.10056662]
[1641238184736,0.68337351,46639.0,46638.0,0.10909962]
[1641238189085,0.63337351,46639.0,46638.0,0.10909962]
[1641238194487,0.68337351,46639.0,46638.0,0.10909962]
[1641238196487,0.67498022,46639.0,46638.0,0.10909962]
[1641238198533,0.77498022,46639.0,46638.0,0.10909962]
[1641238199735,0.77498022,46639.0,46638.0,0.00909962]
[1641238199938,0.77498022,46639.0,46638.0,0.10909962]
[1641238201037,0.67498022,46639.0,46638.0,0.10909962]
[1641238202476,0.67498022,46639.0,46638.0,0.00909962]
[1641238202875,0.77498022,46639.0,46638.0,0.10909962]
[1641238203076,0.67498022,46639.0,46638.0,0.10909962]
[1641238203477,0.77498022,46639.0,46638.0,0.00909962]
[1641238204680,1.14029068,46639.0,46638.0,0.00909962]
[1641238205080,0.10728,46637.0,46634.0,0.0080203]
[1641238205282,0.39840325,46635.0,46634.0,0.0080203]
[1641238205535,0.64269912,46635.0,46634.0,0.0080203]
[1641238205739,0.64269912,46635.0,46634.0,0.00810225]
[1641238206339,0.94067909,46635.0,46634.0,8.195e-05]
[1641238206538,0.78948688,46635.0,46634.0,8.195e-05]
[1641238206738,0.78948688,46635.0,46634.0,0.00861495]
[1641238206939,1.28948688,46635.0,46634.0,0.00861495]
[1641238207537,1.57271433,46635.0,46634.0,0.00861495]
[1641238208337,2.21564433,46635.0,46634.0,0.00861495]
[1641238208744,2.21564433,46635.0,46633.0,0.008533]
[1641238208945,0.87270804,46634.0,46633.0,0.008533]
[1641238209144,1.01570804,46634.0,46633.0,0.008533]
[1641238209388,1.01570804,46634.0,46630.0,0.00802037]
[1641238209589,0.19482469,46631.0,46630.0,0.00802037]
[1641238209790,0.33782469,46631.0,46630.0,0.00802037]
[1641238210289,0.43782469,46631.0,46616.0,0.29166318]
[1641238210489,0.10729145,46622.0,46616.0,0.29166318]
[1641238210690,0.10729,46619.0,46616.0,0.29166318]
[1641238210892,0.05,46621.0,46618.0,0.36654636]
[1641238211091,0.043,46628.0,46619.0,0.74729496]
[1641238211292,0.02225304,46623.0,46618.0,0.26654636]
[1641238211492,0.043,46628.0,46622.0,0.1]
[1641238211693,0.02225304,46623.0,46621.0,0.09103849]
[1641238211991,0.053632,46627.0,46622.0,0.1]
[1641238212190,0.053632,46627.0,46626.0,0.1]
[1641238212390,0.42634004,46627.0,46626.0,0.1]
[1641238212793,0.350455,46627.0,46626.0,0.1]
[1641238213025,0.05363,46629.0,46626.0,0.1]
[1641238213228,0.350455,46628.0,46626.0,0.1]
[1641238213928,0.053631,46630.0,46626.0,0.1]
[1641238214129,0.1548512,46633.0,46629.0,0.1]
[1641238214328,0.1548512,46633.0,46627.0,0.053628]
[1641238214329,0.350455,46632.0,46624.0,0.29519006]
[1641238214530,0.1548512,46633.0,46631.0,0.1]
[1641238214729,0.350455,46632.0,46631.0,0.1]
[1641238215330,0.404082,46632.0,46631.0,0.1]
[1641238216973,0.350455,46632.0,46631.0,0.1]
[1641238217974,0.37270804,46632.0,46631.0,0.1]
[1641238219973,0.37270804,46632.0,46631.0,0.10083717]
[1641238220174,0.37270804,46632.0,46631.0,0.10167434]
[1641238222130,0.59270804,46632.0,46631.0,0.10167434]
[1641238222331,0.570455,46632.0,46631.0,0.10167434]
[1641238226975,0.624081,46632.0,46631.0,0.10167434]
[1641238232180,0.624081,46632.0,46631.0,0.1021953]
[1641238234584,0.724081,46632.0,46631.0,0.1021953]
[1641238235840,0.724081,46632.0,46631.0,0.0021953]
[1641238236639,0.724081,46632.0,46631.0,0.1021953]
[1641238238942,0.624081,46632.0,46631.0,0.1021953]
[1641238239144,0.669081,46632.0,46631.0,0.1021953]
[1641238240188,0.624081,46632.0,46631.0,0.1021953]
[1641238244725,0.570455,46632.0,46631.0,0.1021953]
[1641238244931,0.22,46632.0,46631.0,0.38591239]
[1641238247790,0.22,46632.0,46631.0,1.21014538]
[1641238247993,0.22,46632.0,46631.0,1.56060038]
[1641238248190,0.22,46632.0,46631.0,0.88060038]
[1641238248591,0.22,46632.0,46631.0,0.98060038]
[1641238248993,0.20848809,46632.0,46631.0,0.88060038]
[1641238249593,0.20348809,46632.0,46631.0,0.88060038]
[1641238250195,0.20348809,46632.0,46631.0,0.98060038]
[1641238251742,0.20348809,46632.0,46631.0,0.97560038]
[1641238251954,0.20348809,46632.0,46631.0,1.02560038]
[1641238252344,0.20348809,46632.0,46631.0,0.92560038]
[1641238252545,0.20348809,46632.0,46631.0,1.02560038]
[1641238252943,0.20348809,46632.0,46631.0,0.87560038]
[1641238253346,0.20348809,46632.0,46631.0,0.77560038]
[1641238253545,0.20348809,46632.0,46631.0,0.77607398]
[1641238256790,0.20348809,46632.0,46631.0,0.87607398]
[1641238258627,0.20348809,46632.0,46631.0,1.59040949]
[1641238259227,0.20348809,46632.0,46631.0,0.87607398]
[1641238260727,0.20348809,46632.0,46631.0,0.98329498]
[1641238261629,0.20348809,46632.0,46631.0,1.17547194]
[1641238262689,0.20348809,46632.0,46631.0,1.04772498]
[1641238262889,0.20348809,46632.0,46631.0,0.98329498]
[1641238263489,0.20348809,46632.0,46631.0,1.68606757]
[1641238263891,0.20348809,46632.0,46631.0,1.81381453]
[1641238264290,0.20348809,46632.0,46631.0,1.91381453]
[1641238264894,0.20348809,46632.0,46631.0,1.86381453]
[1641238268253,0.20348809,46632.0,46631.0,1.91381453]
[1641238268444,0.20348809,46632.0,46631.0,1.21104194]
[1641238268644,0.20348809,46632.0,46631.0,1.58104194]
[1641238268843,0.20348809,46632.0,46631.0,1.16104194]
[1641238269893,0.20348809,46632.0,46631.0,1.11104194]
[1641238271693,0.20348809,46632.0,46631.0,1.16104194]
[1641238271996,0.20348809,46632.0,46631.0,1.21104194]
[1641238272193,0.20348809,46632.0,46631.0,1.31104194]
[1641238272598,0.20348809,46632.0,46631.0,4.28113169]
[1641238272797,0.20348809,46632.0,46631.0,4.81873169]
[1641238273038,0.00802042,46637.0,46631.0,4.81873169]
[1641238273342,0.00802042,46637.0,46636.0,1.37976217]
[1641238273541,0.00802042,46637.0,46636.0,2.4615078]
[1641238273743,0.00802042,46637.0,46636.0,2.6615078]
[1641238273941,0.0001,46640.0,46639.0,0.00121843]
[1641238274141,0.0001,46640.0,46639.0,0.49310172]
[1641238274339,0.0001,46640.0,46639.0,0.59310172]
[1641238274539,0.0001,46640.0,46639.0,0.74669472]
[1641238274737,0.0001,46640.0,46639.0,1.08688976]
[1641238275140,0.2201,46640.0,46639.0,1.08688976]
[1641238275341,0.2201,46640.0,46639.0,2.02541364]
[1641238275942,0.2201,46640.0,46639.0,1.32333954]
[1641238277190,0.2201,46640.0,46639.0,1.4510865]
[1641238278393,0.2201,46640.0,46639.0,5.28638063]
[1641238278795,0.2201,46640.0,46639.0,5.23638063]
[1641238278991,0.2201,46640.0,46639.0,5.24490221]
[1641238279994,0.2201,46640.0,46639.0,5.44490221]
[1641238280736,0.00798448,46645.0,46644.0,0.00128067]
[1641238280938,0.00798448,46645.0,46644.0,1.2826464]
[1641238281135,0.00798448,46645.0,46644.0,1.4326464]
[1641238281937,0.00798448,46645.0,46644.0,2.13436754]
[1641238282337,0.0001,46650.0,46646.0,0.053588]
[1641238282539,0.00808439,46650.0,46649.0,0.45009095]
[1641238282737,0.00808439,46650.0,46649.0,0.76640391]
[1641238282938,0.00808439,46650.0,46649.0,0.59309095]
[1641238283140,0.00808439,46650.0,46649.0,0.86332829]
[1641238283638,0.00808439,46650.0,46649.0,0.91692029]
[1641238283842,0.00808439,46650.0,46649.0,1.14995649]
[1641238284289,0.0001,46650.0,46649.0,1.14995649]
[1641238284483,0.0001,46650.0,46649.0,0.91692029]
[1641238285288,0.2201,46650.0,46649.0,0.91692029]
[1641238285489,0.2201,46650.0,46649.0,1.19518256]
[1641238285788,0.2201,46650.0,46649.0,0.92494522]
[1641238286688,0.0001,46650.0,46649.0,0.92494522]
[1641238286889,0.0001,46650.0,46649.0,0.6471415]
[1641238287088,0.0001,46650.0,46649.0,0.91581338]
[1641238287890,0.0001,46650.0,46649.0,0.6471415]
[1641238288550,0.0001,46650.0,46649.0,0.916276]
[1641238289347,0.0001,46650.0,46649.0,0.5471415]
[1641238290547,0.0001,46650.0,46649.0,0.81584437]
[1641238291977,0.0001,46650.0,46649.0,0.91584437]
[1641238293980,0.0001,46660.0,46649.0,0.6471415]
[1641238294183,0.30892103,46661.0,46656.0,0.09519008]
[1641238294381,0.350455,46660.0,46656.0,0.09519008]
[1641238294580,0.00292103,46661.0,46656.0,0.19361837]
[1641238295081,0.05651603,46661.0,46656.0,0.19361837]
[1641238296242,0.05651603,46661.0,46657.0,0.00045105]
[1641238296640,0.350455,46660.0,46657.0,0.00045105]
[1641238296843,0.04956221,46659.0,46657.0,0.00045105]
[1641238299493,0.05651603,46661.0,46657.0,0.00045105]
[1641238299892,0.350455,46660.0,46657.0,0.00045105]
[1641238300289,0.00292103,46661.0,46657.0,0.00045105]
[1641238302592,0.0003,46663.0,46657.0,0.00045105]
[1641238302792,0.00172631,46664.0,46657.0,0.00045105]
[1641238302793,0.00014734,46664.0,46657.0,0.00045105]
[1641238303039,0.05014734,46664.0,46657.0,0.00045105]
[1641238303240,0.053594,46661.0,46657.0,0.00045105]
[1641238303640,0.350455,46660.0,46657.0,0.00045105]
[1641238304545,0.053596,46659.0,46657.0,0.00045105]
[1641238304842,0.171319,46658.0,46657.0,0.00045105]
[1641238305042,0.053596,46659.0,46657.0,0.00045105]
[1641238305843,0.350455,46658.0,46657.0,0.00045105]
[1641238309519,0.40405372,46658.0,46657.0,0.00045105]
[1641238309721,0.350455,46658.0,46657.0,0.00045105]
[1641238310946,0.053596,46659.0,46657.0,0.00045105]
[1641238312247,0.350455,46658.0,46657.0,0.00045105]
[1641238312644,0.00014734,46664.0,46657.0,0.00045105]
[1641238312845,0.350455,46663.0,46657.0,0.00045105]
[1641238313346,0.450455,46663.0,46657.0,0.00045105]
[1641238313746,0.053596,46661.0,46657.0,0.00045105]
[1641238313946,0.053596,46659.0,46657.0,0.00045105]
[1641238314147,0.350455,46658.0,46657.0,0.00045105]
[1641238314398,0.65351351,46658.0,46657.0,0.00045105]
[1641238314596,0.350455,46658.0,46657.0,0.00045105]
[1641238317702,0.70459708,46658.0,46657.0,0.00045105]
[1641238317901,0.75459708,46658.0,46657.0,0.00045105]
[1641238318341,1.14049708,46658.0,46657.0,0.00045105]
[1641238318737,1.18349708,46658.0,46657.0,0.00045105]
[1641238318938,1.20575012,46658.0,46657.0,0.00045105]
[1641238319139,1.20704381,46658.0,46657.0,0.00045105]
[1641238321041,1.70704381,46658.0,46657.0,0.00045105]
[1641238322992,1.40290173,46658.0,46657.0,0.00045105]
[1641238323994,1.40447344,46658.0,46657.0,0.00045105]
[1641238324193,0.90447344,46658.0,46657.0,0.00045105]
[1641238324395,1.22860009,46658.0,46657.0,0.00045105]
[1641238325562,1.72860009,46658.0,46657.0,0.00045105]
[1641238325762,1.82850009,46658.0,46657.0,0.00045105]
[1641238327960,1.82850009,46658.0,46657.0,0.00025115]
[1641238329697,1.82692838,46658.0,46657.0,0.00025115]
[1641238330098,1.50280173,46658.0,46657.0,0.00025115]
[1641238330303,1.30280173,46658.0,46657.0,0.00025115]
[1641238331201,1.20290173,46658.0,46657.0,0.00025115]
[1641238331398,0.91700173,46658.0,46657.0,0.00025115]
[1641238331598,0.96700173,46658.0,46657.0,0.00025115]
[1641238331897,0.46700173,46658.0,46657.0,0.00025115]
[1641238332698,0.42400173,46658.0,46657.0,0.00025115]
[1641238332901,0.47400173,46658.0,46657.0,0.00025115]
[1641238335143,0.37400173,46658.0,46657.0,0.00025115]
[1641238335342,0.37270804,46658.0,46657.0,0.00025115]
[1641238336444,0.78056203,46658.0,46657.0,0.00025115]
[1641238338382,0.78056203,46658.0,46657.0,0.0004337]
[1641238338585,0.88056203,46658.0,46657.0,0.0004337]
[1641238338986,0.42270804,46658.0,46657.0,0.0004337]
[1641238339984,0.47270804,46658.0,46657.0,0.0004337]
[1641238340188,0.57270804,46658.0,46657.0,0.0004337]
[1641238340830,0.88103815,46658.0,46657.0,0.0004337]
[1641238341029,0.57270804,46658.0,46657.0,0.0004337]
[1641238342436,0.42270804,46658.0,46657.0,0.0004337]
[1641238342634,0.47270804,46658.0,46657.0,0.0004337]
[1641238343335,0.57270804,46658.0,46657.0,0.0004337]
[1641238345196,0.47270804,46658.0,46657.0,0.0004337]
[1641238346596,0.47270804,46658.0,46657.0,0.09886199]
[1641238346797,0.47270804,46658.0,46657.0,0.0004337]
[1641238348037,0.47270804,46658.0,46657.0,0.09886199]
[1641238349240,0.37270804,46658.0,46657.0,0.09886199]
[1641238350045,0.47270804,46658.0,46657.0,0.09886199]
[1641238350742,0.47270804,46658.0,46657.0,0.0004337]
[1641238351144,0.47270804,46658.0,46657.0,0.09886199]
[1641238351543,0.47270804,46658.0,46657.0,0.0004337]
[1641238353096,0.47270804,46658.0,46657.0,0.09886199]
[1641238353498,0.47270804,46658.0,46657.0,0.0004337]
[1641238353698,0.57270804,46658.0,46657.0,0.0004337]
[1641238356252,0.61570804,46658.0,46657.0,0.0004337]
[1641238356449,1.25995887,46658.0,46657.0,0.0004337]
[1641238356649,0.26809736,46651.0,46644.0,0.41431963]
[1641238356849,0.10845925,46651.0,46645.0,0.31589134]
[1641238357048,0.05,46650.0,46644.0,0.09842829]
[1641238357248,0.02225304,46645.0,46644.0,0.09842829]
[1641238357849,0.07587204,46645.0,46644.0,0.09842829]
[1641238358050,0.12587204,46645.0,46644.0,0.10694891]
[1641238358351,0.22949087,46645.0,46644.0,0.10694891]
[1641238359387,0.22949087,46645.0,46644.0,0.10735404]
[1641238359587,0.57994587,46645.0,46644.0,0.00892575]
[1641238360392,0.58118941,46645.0,46644.0,0.00892575]
[1641238360589,0.62418941,46645.0,46644.0,0.00892575]
[1641238360992,1.26716941,46645.0,46644.0,0.00892575]
[1641238361789,0.171319,46644.0,46642.0,0.00735404]
[1641238361990,0.71523304,46643.0,46642.0,0.00735404]
[1641238362190,1.17292804,46643.0,46642.0,0.00735404]
[1641238362390,1.22292804,46643.0,46642.0,0.00735404]
[1641238363747,1.17292804,46643.0,46642.0,0.00735404]
[1641238365848,1.32292804,46643.0,46642.0,0.00735404]
[1641238366047,1.17292804,46643.0,46642.0,0.00735404]
[1641238368786,1.22292804,46643.0,46642.0,0.00735404]
[1641238369992,1.22292804,46643.0,46642.0,0.00772401]
[1641238375106,1.32292804,46643.0,46642.0,0.00772401]
[1641238378234,1.54292804,46643.0,46642.0,0.00772401]
[1641238380640,1.68983875,46643.0,46642.0,0.00772401]
[1641238380840,1.68983875,46643.0,46642.0,0.00036997]
[1641238380841,1.83574427,46643.0,46642.0,0.00036997]
[1641238381038,1.84095397,46643.0,46642.0,0.00036997]
[1641238381438,1.26,46642.0,46640.0,0.00798217]
[1641238381639,2.09448255,46641.0,46640.0,0.00798217]
[1641238381890,2.19969225,46641.0,46640.0,0.00798217]
[1641238382093,2.29969225,46641.0,46640.0,0.00798217]
[1641238382291,2.29969225,46641.0,46635.0,0.00735404]
[1641238382490,1.39353442,46636.0,46635.0,0.00735404]
[1641238382690,1.39353442,46636.0,46634.0,0.00735404]
[1641238382691,2.56799143,46636.0,46634.0,0.00735404]
[1641238382891,1.24270804,46635.0,46634.0,0.00735404]
[1641238383089,1.15992479,46635.0,46634.0,0.00735404]
[1641238383692,1.32084779,46635.0,46634.0,0.00735404]
[1641238385291,1.32084779,46635.0,46634.0,0.01588804]
[1641238387856,1.37684788,46635.0,46634.0,0.01588804]
[1641238390989,1.37684788,46635.0,46634.0,0.01623106]
[1641238393039,1.33261113,46635.0,46634.0,0.01623106]
[1641238393640,1.23261113,46635.0,46634.0,0.01623106]
[1641238395244,1.33261113,46635.0,46634.0,0.01623106]
[1641238398897,1.43261113,46635.0,46634.0,0.01623106]
[1641238399699,1.57068519,46635.0,46634.0,0.01623106]
[1641238400301,2.07068519,46635.0,46634.0,0.01623106]
[1641238402354,1.93261113,46635.0,46634.0,0.01623106]
[1641238403356,1.73261113,46635.0,46634.0,0.01623106]
[1641238404395,1.23261113,46635.0,46634.0,0.01623106]
[1641238404591,1.43261113,46635.0,46634.0,0.01623106]
[1641238406693,1.43261113,46635.0,46634.0,0.00887702]
[1641238407691,1.93261113,46635.0,46634.0,0.00887702]
[1641238408148,1.93261113,46635.0,46634.0,0.01623106]
[1641238408544,1.93261113,46635.0,46634.0,0.00887702]
[1641238408944,0.171319,46634.0,46633.0,1e-08]
[1641238409145,1.11883256,46634.0,46633.0,1e-08]
[1641238409545,0.91612327,46634.0,46633.0,1e-08]
[1641238409946,1.22000786,46634.0,46633.0,1e-08]
[1641238410246,0.91112327,46634.0,46633.0,0.00853401]
[1641238410748,1.21122983,46634.0,46633.0,0.00853401]
[1641238411148,0.91112327,46634.0,46633.0,0.00853401]
[1641238411793,1.21568875,46634.0,46633.0,0.00853401]
[1641238412187,1.21568875,46634.0,46633.0,0.00884669]
[1641238413089,1.71568875,46634.0,46633.0,0.00884669]
[1641238415090,1.41112327,46634.0,46633.0,0.00884669]
[1641238419497,1.41633297,46634.0,46633.0,0.00884669]
[1641238420098,1.51751901,46634.0,46629.0,0.00735404]
[1641238420301,0.37270804,46630.0,46629.0,0.00735404]
[1641238420500,0.73101078,46630.0,46629.0,0.00735404]
[1641238420700,1.13652989,46630.0,46629.0,0.01588804]
[1641238420901,1.77950989,46630.0,46629.0,0.01588804]
[1641238421098,1.83551498,46630.0,46629.0,0.01588804]
[1641238421303,2.08364187,46630.0,46629.0,0.01588804]
[1641238422902,2.08364187,46630.0,46629.0,0.01617606]
[1641238424152,1.81833913,46630.0,46629.0,0.01617606]
[1641238425550,1.91823913,46630.0,46628.0,0.008533]
[1641238425751,0.99840835,46629.0,46628.0,0.008533]
[1641238425950,1.68438835,46629.0,46628.0,0.008533]
[1641238426152,1.78438835,46629.0,46628.0,0.008533]
[1641238426353,1.47456404,46629.0,46628.0,0.01588704]
[1641238426811,1.47456404,46629.0,46628.0,0.017066]
[1641238427407,1.78700866,46629.0,46628.0,0.017066]
[1641238428611,1.47456404,46629.0,46628.0,0.017066]
[1641238429010,1.47456404,46629.0,46628.0,0.02442004]
[1641238429224,1.47456404,46629.0,46628.0,0.017066]
[1641238429411,1.69456404,46629.0,46628.0,0.02442004]
[1641238429812,1.69456404,46629.0,46628.0,0.017066]
[1641238430011,1.69456404,46629.0,46628.0,0.02442004]
[1641238430869,1.69456404,46629.0,46628.0,0.01588704]
[1641238431070,1.74456404,46629.0,46628.0,0.01588704]
[1641238433572,1.74456404,46629.0,46628.0,0.01614929]
[1641238436708,1.74456404,46629.0,46628.0,0.00761629]
[1641238438550,1.74456404,46629.0,46628.0,0.01615029]
[1641238442510,1.70156404,46629.0,46628.0,0.01615029]
[1641238442911,1.66156404,46629.0,46628.0,0.01615029]
[1641238443109,1.65156404,46629.0,46628.0,0.01615029]
[1641238444111,1.7027454,46629.0,46628.0,0.01615029]
[1641238444513,1.87076307,46629.0,46628.0,0.01615029]
[1641238447261,1.87003603,46629.0,46628.0,0.01615029]
[1641238447460,1.86931007,46629.0,46628.0,0.01615029]
[1641238451115,1.86931007,46629.0,46628.0,0.00761629]
[1641238451715,1.76931007,46629.0,46628.0,0.00761629]
[1641238451919,1.71958171,46629.0,46628.0,0.00761629]
[1641238452113,1.55156404,46629.0,46628.0,0.00761629]
[1641238452313,1.529311,46629.0,46628.0,0.00761629]
[1641238453156,1.129311,46629.0,46628.0,0.30879394]
[1641238454256,1.129311,46629.0,46628.0,0.31732694]
[1641238455857,1.129311,46629.0,46628.0,0.01614929]
[1641238462577,1.229311,46629.0,46628.0,0.01614929]
[1641238464181,0.00852071,46627.0,46625.0,0.00795569]
[1641238464458,0.00852071,46627.0,46607.0,1.1682]
[1641238464459,0.00122557,46621.0,46620.0,0.00564267]
[1641238464658,1.29249703,46621.0,46620.0,0.00564267]
[1641238464861,1.34249703,46621.0,46620.0,0.00564267]
[1641238465055,0.23645634,46613.0,46602.0,0.71948363]
[1641238465256,0.23293318,46612.0,46602.0,0.71948363]
[1641238465457,0.83293318,46612.0,46602.0,0.71948363]
[1641238465661,0.98744488,46612.0,46611.0,0.010534]
[1641238465856,1.04110788,46612.0,46611.0,0.008534]
[1641238466053,1.68323911,46612.0,46611.0,0.008534]
[1641238466458,2.22168788,46612.0,46611.0,0.008534]
[1641238466656,2.72083911,46612.0,46611.0,0.008534]
[1641238467057,2.72168788,46612.0,46611.0,0.008534]
[1641238467259,0.57,46611.0,46600.0,0.0048]
[1641238467459,0.053673,46605.0,46601.0,0.00992771]
[1641238467658,0.23166504,46604.0,46601.0,0.00992771]
[1641238467857,0.28166504,46604.0,46601.0,0.00992771]
[1641238468265,0.28166504,46604.0,46601.0,0.002]
[1641238468459,0.78166504,46604.0,46601.0,0.002]
[1641238468659,0.88166504,46604.0,46601.0,0.002]
[1641238469662,0.78166504,46604.0,46603.0,0.12003453]
[1641238469863,0.166412,46604.0,46603.0,0.43408563]
[1641238470061,0.053656,46608.0,46603.0,0.12003453]
[1641238470259,0.553656,46608.0,46603.0,0.43408563]
[1641238470460,0.22,46604.0,46603.0,0.43408563]
[1641238470662,0.22,46604.0,46603.0,0.12003453]
[1641238470868,0.570374,46604.0,46603.0,0.038533]
[1641238472228,0.323662,46604.0,46603.0,0.038533]
[1641238472431,0.423662,46604.0,46603.0,0.038533]
[1641238472828,0.79628904,46604.0,46603.0,0.038533]
[1641238474032,0.774036,46604.0,46603.0,0.038533]
[1641238474227,0.79628904,46604.0,46603.0,0.038533]
[1641238477262,0.79628904,46604.0,46603.0,0.018533]
[1641238477561,0.64628904,46604.0,46603.0,0.018533]
[1641238477763,0.64628904,46604.0,46603.0,0.01879232]
[1641238479065,0.59262704,46604.0,46603.0,0.01879232]
[1641238479516,0.24225304,46604.0,46603.0,0.01879232]
[1641238479715,0.24225304,46604.0,46603.0,0.01025932]
[1641238479916,0.22,46604.0,46603.0,0.01025932]
[1641238480316,0.27,46604.0,46603.0,0.01025932]
[1641238481419,0.29225304,46604.0,46603.0,0.01025932]
[1641238481818,0.29225304,46604.0,46603.0,0.01879232]
[1641238482217,0.64262704,46604.0,46603.0,0.01879232]
[1641238483072,0.570374,46604.0,46603.0,0.01879232]
[1641238483474,0.620374,46604.0,46603.0,0.01879232]
[1641238484176,0.64262704,46604.0,46603.0,0.01879232]
[1641238484673,0.63762704,46604.0,46603.0,0.01879232]
[1641238485172,0.73762704,46604.0,46603.0,0.01879232]
[1641238485572,0.63762704,46604.0,46603.0,0.01879232]
[1641238485772,0.615374,46604.0,46603.0,0.01879232]
[1641238486827,0.63762704,46604.0,46603.0,0.01879232]
[1641238487021,0.570374,46604.0,46603.0,0.10153284]
[1641238487219,0.570374,46604.0,46603.0,0.38859201]
[1641238487620,0.22,46604.0,46603.0,0.38859201]
[1641238488221,0.22,46604.0,46603.0,0.38312874]
[1641238488622,0.22,46604.0,46603.0,0.01879232]
[1641238497012,0.27,46604.0,46603.0,0.01879232]
[1641238497217,0.620374,46604.0,46603.0,0.01879232]
[1641238498974,0.720374,46604.0,46603.0,0.01879232]
[1641238500575,0.74262704,46604.0,46603.0,0.01879232]
[1641238501376,0.90365004,46604.0,46603.0,0.01879232]
[1641238509067,0.90365004,46604.0,46603.0,0.01581295]
[1641238509530,0.90365004,46604.0,46602.0,0.00848083]
[1641238509730,0.18866504,46603.0,46602.0,0.00848083]
[1641238511332,0.18866504,46603.0,46602.0,0.01701483]
[1641238512235,0.166412,46603.0,46602.0,0.01701483]
[1641238512435,0.18866504,46603.0,46602.0,0.01701483]
[1641238518657,0.18866504,46603.0,46602.0,0.01725142]
[1641238529289,0.48946843,46603.0,46602.0,0.01725142]
[1641238529484,0.58946843,46603.0,46602.0,0.01725142]
[1641238530286,1.00946843,46603.0,46602.0,0.01725142]
[1641238530485,1.00946843,46603.0,46602.0,0.01701483]
[1641238534018,0.70866504,46603.0,46602.0,0.01701483]
[1641238534820,1.00908516,46603.0,46602.0,0.01701483]
[1641238535022,0.70866504,46603.0,46602.0,0.01701483]
[1641238535571,1.01185932,46603.0,46602.0,0.01701483]
[1641238535773,1.05485932,46603.0,46602.0,0.01701483]
[1641238535975,1.15475932,46603.0,46602.0,0.01701483]
[1641238536170,1.79773932,46603.0,46602.0,0.01701483]
[1641238536773,2.29773932,46603.0,46602.0,0.01701483]
[1641238537073,0.053681,46602.0,46601.0,0.002]
[1641238537273,0.83488105,46602.0,46601.0,0.002]
[1641238537673,0.93488105,46602.0,46601.0,0.002]
[1641238537875,0.93488105,46602.0,46601.0,0.010533]
[1641238537876,1.43488105,46602.0,46601.0,0.010533]
[1641238538073,1.43488105,46602.0,46600.0,0.008533]
[1641238538074,1.69383915,46602.0,46600.0,0.008533]
[1641238538374,0.52653044,46601.0,46600.0,0.008533]
[1641238538577,0.62653044,46601.0,46600.0,0.008533]
[1641238538772,1.26951044,46601.0,46600.0,0.017066]
[1641238538975,1.76951044,46601.0,46600.0,0.017066]
[1641238539425,1.81251044,46601.0,46600.0,0.017066]
[1641238539831,1.81251044,46601.0,46600.0,0.008533]
[1641238539832,1.91241044,46601.0,46600.0,0.008533]
[1641238540026,1.91368607,46601.0,46591.0,0.002]
[1641238540227,0.02225304,46596.0,46591.0,0.002]
[1641238540527,0.02225304,46592.0,46591.0,0.002]
[1641238540827,0.18866504,46592.0,46591.0,0.002]
[1641238541132,0.29234904,46592.0,46591.0,0.010534]
[1641238541329,0.34603129,46592.0,46591.0,0.010534]
[1641238541627,0.44603129,46592.0,46591.0,0.010534]
[1641238543182,0.34603129,46592.0,46591.0,0.010534]
[1641238547170,0.32377825,46592.0,46591.0,0.010534]
[1641238547967,0.27377825,46592.0,46591.0,0.010534]
[1641238548167,0.053684,46592.0,46591.0,0.010534]
[1641238548468,0.00118229,46593.0,46591.0,0.20770048]
[1641238548666,0.00118229,46593.0,46592.0,0.350374]
[1641238548871,0.00118229,46593.0,46592.0,0.60984512]
[1641238549468,8.229e-05,46593.0,46592.0,0.70984512]
[1641238549667,8.229e-05,46593.0,46592.0,0.80984512]
[1641238550469,8.229e-05,46593.0,46592.0,1.52932875]
[1641238550673,0.64298,46601.0,46599.0,0.06345094]
[1641238550874,0.64298,46601.0,46600.0,0.62029985]
[1641238551271,0.64298,46601.0,46600.0,0.82739765]
[1641238551471,0.64298,46601.0,46600.0,1.17777165]
[1641238551676,0.64298,46601.0,46600.0,0.95777165]
[1641238551872,0.64298,46601.0,46600.0,0.95905865]
[1641238552672,0.64298,46601.0,46600.0,1.00905865]
[1641238553274,0.64298,46601.0,46600.0,0.95905865]
[1641238553675,0.64298,46601.0,46600.0,1.00905865]
[1641238554626,0.64298,46601.0,46600.0,1.10905865]
[1641238554828,0.64298,46601.0,46600.0,1.15205865]
[1641238555425,0.64298,46601.0,46600.0,1.74205865]
[1641238555826,0.64298,46601.0,46600.0,2.46154228]
[1641238556129,0.64298,46601.0,46600.0,1.87154228]
[1641238556626,0.64298,46601.0,46600.0,1.15205865]
[1641238557227,0.64298,46601.0,46600.0,1.87751215]
[1641238557627,0.64298,46601.0,46600.0,1.77751215]
[1641238557826,0.64298,46601.0,46600.0,1.57162825]
[1641238558067,0.64298,46601.0,46600.0,1.52162825]
[1641238559170,0.64298,46601.0,46600.0,0.79617475]
[1641238560874,0.64298,46601.0,46600.0,1.04617475]
[1641238561070,0.64298,46601.0,46600.0,0.94639135]
[1641238561269,0.86298,46601.0,46600.0,1.40639135]
[1641238561669,0.86298,46601.0,46600.0,2.13184485]
[1641238562130,0.86298,46601.0,46600.0,1.40639135]
[1641238563028,0.86298,46601.0,46600.0,1.50639135]
[1641238563227,0.86225279,46601.0,46600.0,1.04639135]
[1641238563426,0.86225279,46601.0,46600.0,1.24087253]
[1641238564229,0.86225279,46601.0,46600.0,0.79639135]
[1641238564628,0.86225279,46601.0,46600.0,0.84639135]
[1641238565878,0.86225279,46601.0,46600.0,1.16961076]
[1641238567083,0.86225279,46601.0,46600.0,1.26961076]
[1641238567281,0.86225279,46601.0,46600.0,1.31961076]
[1641238567482,0.86225279,46601.0,46600.0,1.26961076]